bitfinex/quotes_ETHUSD_20240824
["timestamp","ask_amount","ask_price","bid_price","bid_amount"]
[1724476712180,5.53184825,2756.1,2755.6,0.55]
[1724476715666,3.62852,2756.0,2755.5,2.4306]
[1724476715894,3.62869,2755.9,2755.5,2.4306]
[1724476716188,3.62871,2755.8,2755.5,2.4306]
[1724476717091,3.62918,2755.5,2755.3,2.4306]
[1724476717276,3.62894,2755.7,2755.3,2.4306]
[1724476717671,3.62899,2755.6,2755.3,2.4306]
[1724476720781,3.62889,2755.7,2755.3,3.036621]
[1724476722093,3.62889,2755.7,2755.3,2.4306]
[1724476722785,5.53255734,2755.8,2755.3,6.05992]
[1724476722786,1.90384734,2755.8,2755.3,6.05992]
[1724476722981,5.53260734,2755.8,2755.3,6.05992]
[1724476723773,3.62876,2755.8,2755.3,6.05992]
[1724476724582,3.62876,2755.8,2755.3,7.028872]
[1724476725112,5.53260734,2755.8,2755.3,7.028872]
[1724476726078,5.5328279,2755.8,2755.3,7.028872]
[1724476726297,3.62876,2755.8,2755.3,7.028872]
[1724476726583,9.1616279,2755.8,2755.3,3.399552]
[1724476727208,3.62884,2755.7,2755.3,3.399552]
[1724476727882,3.62884,2755.7,2755.3,2.4306]
[1724476728697,3.62876,2755.8,2755.3,6.05994]
[1724476728882,1.9040679,2755.9,2755.5,2.3037]
[1724476729216,3.62865,2755.9,2755.6,0.55]
[1724476729418,5.5325879,2756.0,2755.6,0.55]
[1724476729626,9.1611579,2756.0,2755.6,1.198286]
[1724476731127,9.16123837,2756.0,2755.6,1.198286]
[1724476731911,5.53267837,2756.0,2755.6,1.198286]
[1724476732115,9.16121837,2756.0,2755.6,1.198286]
[1724476732484,9.16120837,2756.0,2755.6,1.198286]
[1724476732684,5.53267837,2756.0,2755.8,2.3037]
[1724476732927,3.62852,2756.0,2755.8,2.3037]
[1724476736441,3.62852,2756.0,2755.8,2.3037]
[1724476740160,3.62833,2756.1,2755.8,2.3037]
[1724476740337,5.53248837,2756.1,2755.8,2.3037]
[1724476740509,5.53252844,2756.1,2755.8,2.3037]
[1724476740852,5.66170174,2756.2,2755.8,2.3037]
[1724476741840,1.90419844,2756.1,2755.8,2.3037]
[1724476742051,5.66170174,2756.2,2755.8,2.3037]
[1724476742962,9.28996174,2756.2,2755.8,2.3037]
[1724476743151,5.66170174,2756.2,2755.8,2.3037]
[1724476743364,1.52333766,2756.0,2755.8,2.3037]
[1724476743520,1.52333766,2756.0,2755.8,3.0167846]
[1724476745377,1.52333766,2756.0,2755.8,2.3037]
[1724476745933,1.52333766,2756.1,2755.8,2.3037]
[1724476746169,1.52333766,2756.0,2755.8,2.3037]
[1724476750543,1.52333766,2756.1,2755.8,2.3037]
[1724476750749,2.03333332,2756.2,2755.9,4.4161969]
[1724476750750,0.1292533,2756.2,2755.9,4.4161969]
[1724476750945,0.1292533,2756.2,2756.0,2.479]
[1724476751171,0.1292533,2756.2,2756.0,6.10744]
[1724476751825,0.1292533,2756.2,2756.0,2.479]
[1724476752029,0.1292533,2756.2,2756.0,3.16851069]
[1724476752241,0.1292533,2756.2,2756.1,2.479]
[1724476752387,0.1292533,2756.2,2756.1,3.029]
[1724476752744,0.1292533,2756.2,2756.1,6.65731]
[1724476753332,0.1292533,2756.2,2756.1,10.28562]
[1724476753619,0.1292533,2756.2,2756.1,11.33794469]
[1724476754329,0.12833021,2756.2,2756.1,11.33794469]
[1724476756130,0.12833021,2756.2,2756.1,7.70963469]
[1724476756647,0.12833021,2756.2,2756.1,11.33794469]
[1724476759318,0.12833021,2756.2,2756.1,7.70963469]
[1724476759943,0.12833021,2756.2,2756.1,11.33794469]
[1724476760948,0.12833021,2756.2,2756.1,4.08132469]
[1724476761522,0.12833021,2756.2,2756.1,11.33794469]
[1724476772072,0.12833021,2756.2,2756.1,5.23063469]
[1724476772270,0.12833021,2756.2,2756.0,3.6284]
[1724476772670,0.12833021,2756.2,2756.1,3.62831]
[1724476772865,0.12833021,2756.2,2756.1,7.25662]
[1724476773800,0.12833021,2756.2,2756.1,7.80662]
[1724476776270,0.12833021,2756.2,2756.1,10.17962]
[1724476776505,0.12833021,2756.2,2756.1,15.21249569]
[1724476776807,0.12833021,2756.2,2756.1,18.21249569]
[1724476782903,2.1e-07,2756.2,2756.1,25.46911569]
[1724476783088,2.2774,2757.3,2757.0,3.62706]
[1724476783300,2.2774,2757.3,2757.0,0.725438]
[1724476784830,2.2774,2756.9,2756.5,3.62777]
[1724476786149,2.2774,2756.9,2756.6,3.62764]
[1724476786305,2.2774,2756.9,2756.7,3.6275]
[1724476786804,2.2774,2756.9,2756.8,3.62739]
[1724476787000,2.2774,2756.9,2756.7,3.6275]
[1724476787246,2.2774,2757.3,2756.8,3.62739]
[1724476787545,2.2774,2757.3,2756.9,3.62725]
[1724476787754,2.2774,2757.3,2757.1,3.62696]
[1724476787923,2.2774,2757.3,2757.2,0.55]
[1724476789908,2.2774,2757.3,2756.9,3.62718]
[1724476790110,2.2774,2757.3,2756.7,3.62747]
[1724476790111,2.2774,2757.2,2756.7,3.62747]
[1724476791047,2.2774,2757.2,2756.1,1.40456569]
[1724476791048,2.2774,2757.1,2756.1,1.40456569]
[1724476791255,2.2774,2756.8,2756.3,3.62803]
[1724476791845,5.90481,2756.8,2756.3,3.62803]
[1724476792052,2.2774,2756.8,2756.3,3.62803]
[1724476792354,2.2774,2756.8,2756.5,3.62777]
[1724476793666,2.2774,2756.8,2756.7,3.62752]
[1724476793865,2.2774,2757.1,2756.7,4.17752]
[1724476794233,2.2774,2757.1,2756.8,0.55]
[1724476795745,3.41805798,2757.1,2756.8,4.17734]
[1724476795949,2.2774,2757.1,2756.8,4.17734]
[1724476797327,1.14065798,2757.2,2756.9,3.62725]
[1724476798547,1.14065798,2757.2,2757.0,3.62708]
[1724476798750,1.14065798,2757.2,2757.1,0.55]
[1724476798951,3.41805798,2757.3,2757.1,0.55]
[1724476800437,3.41805798,2757.3,2757.0,3.62708]
[1724476801661,1.14065798,2757.3,2757.0,7.25413]
[1724476801867,1.14065798,2757.4,2757.0,8.0575929]
[1724476802060,1.14065798,2757.4,2757.1,4.17698]
[1724476802497,1.14065798,2757.4,2757.1,0.55]
[1724476802676,1.14065798,2757.3,2757.1,4.17687]
[1724476802877,1.14065798,2757.3,2757.1,4.17697]
[1724476803090,1.14065798,2757.3,2757.1,4.957372]
[1724476803391,1.14065798,2757.4,2757.1,4.957372]
[1724476803894,1.14065798,2757.3,2757.1,4.957372]
[1724476804056,1.14065798,2757.3,2757.1,1.330402]
[1724476804251,3.78023766,2757.5,2757.1,1.330402]
[1724476804252,1.14065798,2757.4,2757.1,0.55]
[1724476804519,1.14065798,2757.3,2757.1,0.55]
[1724476805900,1.14065798,2757.3,2756.4,6.62788]
[1724476805901,2.2569,2757.2,2756.1,3.44048998]
[1724476806099,3.62747,2756.8,2756.2,3.62813]
[1724476806262,3.62747,2756.8,2755.8,3.6286]
[1724476806263,2.416,2756.5,2755.8,3.6286]
[1724476806607,4.76868798,2756.4,2755.8,3.6286]
[1724476806812,6.04419,2756.2,2755.6,3.62887]
[1724476806961,7.18484798,2756.2,2755.7,0.362887]
[1724476807163,6.04419,2756.2,2755.7,0.362887]
[1724476809559,3.62832,2756.1,2755.4,6.62917]
[1724476809764,3.62832,2756.1,2755.4,3.62922]
[1724476809765,3.62852,2756.0,2755.4,3.62922]
[1724476810227,3.62852,2756.0,2755.4,3.62914]
[1724476810528,3.55665798,2756.1,2755.4,3.62914]
[1724476810529,3.55665798,2756.1,2755.5,3.629]
[1724476810686,3.55665798,2756.1,2755.6,3.62894]
[1724476811184,2.416,2756.1,2755.6,3.62894]
[1724476812133,2.416,2756.1,2755.8,3.62863]
[1724476813535,2.416,2756.1,2755.6,3.62889]
[1724476813536,2.416,2756.1,2755.6,3.62887]
[1724476813828,2.416,2756.1,2755.4,3.62922]
[1724476814332,3.62852,2756.0,2755.4,3.62922]
[1724476814926,2.416,2755.9,2755.4,3.62922]
[1724476815077,3.62891,2755.7,2755.0,3.62967]
[1724476815275,3.62891,2755.7,2755.1,3.62954]
[1724476816501,2.416,2755.6,2755.1,3.62954]
[1724476817335,2.416,2755.6,2754.9,3.62986]
[1724476817336,2.416,2755.6,2754.9,3.6298]
[1724476817496,3.6292,2755.5,2754.9,3.6298]
[1724476818192,6.04523,2755.4,2754.9,3.6298]
[1724476818393,2.416,2755.4,2754.9,3.6298]
[1724476820084,2.416,2755.7,2754.9,2.3829]
[1724476820392,2.416,2755.7,2755.4,3.6292]
[1724476821844,2.416,2755.7,2755.2,7.25885]
[1724476822034,2.416,2755.7,2755.2,7.25882]
[1724476822220,2.416,2755.7,2755.2,3.6294]
[1724476823196,2.416,2755.7,2755.2,7.25881]
[1724476823408,2.416,2755.7,2755.3,0.725881]
[1724476823709,2.416,2755.7,2755.2,3.6294]
[1724476824034,2.416,2755.7,2755.3,3.62926]
[1724476824194,9.7905,2756.0,2755.3,3.62934]
[1724476824399,13.41902,2756.0,2755.4,3.6292]
[1724476824598,13.41902,2756.0,2755.4,4.355054]
[1724476825602,3.6286,2755.9,2755.4,4.355054]
[1724476825831,2.3405,2755.8,2755.4,3.6292]
[1724476826038,2.3405,2755.8,2755.1,3.62956]
[1724476826039,2.3405,2755.8,2755.2,3.6294]
[1724476826249,2.3405,2755.8,2755.3,0.55]
[1724476826456,2.3405,2755.8,2755.1,3.62956]
[1724476826457,3.62884,2755.7,2755.1,3.62956]
[1724476826658,2.4853,2755.5,2755.0,3.86802]
[1724476826860,2.4853,2755.5,2755.1,0.749781]
[1724476827841,2.4853,2755.5,2755.1,4.379401]
[1724476828384,2.4853,2755.5,2755.2,3.62949]
[1724476829558,2.4853,2755.5,2755.1,4.379401]
[1724476829811,2.4853,2755.5,2755.1,8.008931]
[1724476829957,2.4853,2755.5,2755.2,4.4540821]
[1724476830356,2.4853,2755.5,2755.2,0.8247221]
[1724476831084,2.4853,2755.5,2755.1,3.62953]
[1724476832716,2.4853,2755.5,2755.1,7.25907]
[1724476833094,2.4853,2755.5,2755.1,3.62953]
[1724476833324,2.4853,2755.5,2755.1,7.25908]
[1724476833821,2.4853,2755.8,2755.4,3.62912]
[1724476834506,11.07853,2756.0,2755.0,0.23829]
[1724476834507,6.11447,2755.5,2755.0,0.23829]
[1724476834695,6.11447,2755.5,2754.9,7.25959]
[1724476835320,6.11447,2755.5,2755.0,3.62976]
[1724476835620,2.4853,2755.5,2755.0,3.62976]
[1724476835822,2.4853,2755.5,2755.1,3.62959]
[1724476836025,2.4853,2755.5,2755.1,4.355527]
[1724476838310,2.4853,2755.5,2755.1,3.62959]
[1724476840125,2.4853,2755.5,2755.1,7.25918]
[1724476840325,2.4853,2755.5,2755.1,3.62959]
[1724476840528,2.4853,2755.5,2755.1,3.62954]
[1724476840892,2.4853,2755.5,2755.4,3.62923]
[1724476841126,2.4853,2755.5,2755.3,3.62935]
[1724476842343,2.4853,2755.5,2755.3,4.355242]
[1724476845430,2.3352,2755.8,2755.3,4.355242]
[1724476845749,2.3352,2755.8,2755.3,4.355172]
[1724476847170,2.3352,2755.8,2755.4,3.62913]
[1724476847710,2.3352,2755.8,2755.5,3.62907]
[1724476848815,2.3352,2755.8,2755.3,7.25854]
[1724476849518,2.3352,2755.8,2755.3,3.62926]
[1724476850054,2.3352,2755.7,2755.3,3.62926]
[1724476850223,2.3352,2755.7,2755.3,4.355141]
[1724476851256,3.47585798,2755.7,2755.3,4.355141]
[1724476852245,1.14065798,2755.6,2755.3,4.355141]
[1724476855359,1.14065798,2755.5,2755.3,4.355141]
[1724476859269,1.52333766,2755.6,2755.4,0.4355141]
[1724476860197,1.52333766,2755.5,2755.3,4.355141]
[1724476860358,1.14339339,2755.4,2755.3,4.355141]
[1724476860780,1.52333766,2755.5,2755.3,4.355141]
[1724476860999,1.14342123,2755.4,2755.3,4.355141]
[1724476864851,1.14342123,2755.4,2755.0,7.25942]
[1724476864852,2.3871,2755.3,2755.0,7.25942]
[1724476865071,1.14354767,2755.2,2755.1,3.62955]
[1724476865212,1.14354767,2755.3,2755.1,3.62955]
[1724476865552,1.14354767,2755.3,2755.2,4.355424]
[1724476866151,1.14354767,2755.4,2755.2,4.355424]
[1724476866558,1.14354767,2755.3,2755.2,4.355424]
[1724476867131,1.14354767,2755.4,2755.3,3.62936]
[1724476868953,1.52333766,2755.5,2755.2,4.355414]
[1724476869153,1.14359117,2755.3,2755.2,4.355414]
[1724476869777,1.14359117,2755.4,2755.2,4.355414]
[1724476869990,1.14359117,2755.4,2755.3,3.62936]
[1724476870196,1.14359117,2755.4,2755.3,4.4278494]
[1724476878604,2.66692883,2755.5,2755.4,7.25846]
[1724476878810,12.12434508,2756.0,2755.4,7.25846]
[1724476878811,1.14359117,2755.8,2755.4,5.44089902]
[1724476878978,1.52333766,2755.9,2755.8,3.62871]
[1724476879185,1.52333766,2756.0,2755.8,3.62871]
[1724476879674,1.14310104,2755.9,2755.8,3.62871]
[1724476881332,1.14310104,2755.9,2755.8,13.39143515]
[1724476881549,1.14310104,2755.9,2755.8,20.57014515]
[1724476881710,1.14310104,2756.5,2755.8,10.235465]
[1724476882050,1.14310104,2756.5,2756.3,3.62796]
[1724476882591,3.49350104,2756.6,2756.3,3.62796]
[1724476882793,3.49350104,2756.6,2756.3,7.25592]
[1724476883218,1.52333766,2756.8,2756.3,7.25592]
[1724476883219,1.14310104,2756.7,2756.4,3.62789]
[1724476883805,3.49350104,2756.8,2756.4,3.62789]
[1724476884036,1.14310104,2756.7,2756.5,3.62776]
[1724476884219,1.52333766,2756.9,2756.3,0.725592]
[1724476884220,1.14310104,2756.9,2756.8,3.62739]
[1724476884433,1.14310104,2757.1,2756.8,3.990129]
[1724476884732,3.62704,2757.1,2756.4,7.25565]
[1724476884917,3.62704,2757.1,2756.4,3.62782]
[1724476885120,4.77014104,2757.1,2756.5,3.62769]
[1724476885333,3.62704,2757.1,2756.6,3.62762]
[1724476885496,1.14310104,2757.2,2756.6,3.62762]
[1724476885695,7.12033104,2757.3,2756.6,4.353124]
[1724476885927,4.77004104,2757.2,2756.6,3.62758]
[1724476886234,2.3504,2757.1,2756.6,3.62758]
[1724476888666,2.3504,2757.1,2756.8,3.62737]
[1724476889576,5.95165,2757.4,2756.8,3.62737]
[1724476890567,2.325,2757.3,2756.8,3.62737]
[1724476891376,2.325,2757.3,2756.8,7.25466]
[1724476891570,2.325,2757.3,2756.8,3.62729]
[1724476894095,2.325,2757.3,2756.8,7.25459]
[1724476894495,2.325,2757.3,2756.8,3.62729]
[1724476895059,2.325,2757.3,2756.8,4.584767]
[1724476895373,2.325,2757.3,2756.8,8.212077]
[1724476895574,2.325,2757.3,2756.8,4.584767]
[1724476895778,2.325,2757.3,2756.8,3.62729]
[1724476897095,2.325,2757.3,2756.9,3.62717]
[1724476897994,2.325,2757.3,2756.8,3.62729]
[1724476900712,3.62694,2757.2,2756.6,3.62757]
[1724476901158,7.2539,2757.2,2756.6,3.62757]
[1724476901361,3.62694,2757.2,2756.6,3.62757]
[1724476901600,7.45,2757.4,2756.9,3.62718]
[1724476902616,7.45,2757.4,2757.0,3.6271]
[1724476904622,11.0766,2757.4,2756.9,3.62725]
[1724476905040,2.4074,2757.5,2757.0,3.62709]
[1724476905324,3.62643,2757.6,2757.1,2.4168]
[1724476905819,9.8574,2757.7,2757.1,6.648139]
[1724476905991,9.8574,2757.7,2757.2,3.62686]
[1724476906222,2.4074,2757.7,2757.2,3.62686]
[1724476906523,2.4074,2757.7,2757.2,7.25365]
[1724476906825,2.4074,2757.7,2757.2,7.25357]
[1724476907006,2.4074,2757.7,2757.3,1.0274759]
[1724476907808,6.03364,2757.7,2757.3,1.0274759]
[1724476908325,2.4074,2757.7,2757.3,1.0274759]
[1724476909622,2.4074,2757.7,2757.2,3.62678]
[1724476910318,6.03369,2757.7,2757.2,3.62678]
[1724476911198,6.03369,2757.7,2757.1,0.604389]
[1724476911499,6.03369,2757.7,2757.2,0.55]
[1724476912108,3.62635,2757.6,2757.2,0.55]
[1724476912283,3.62635,2757.6,2757.2,1.3908469]
[1724476914589,2.4074,2757.7,2757.2,1.3908469]
[1724476914927,2.4074,2757.7,2757.2,5.0176269]
[1724476915511,3.6261,2757.8,2757.2,7.4344269]
[1724476915891,6.03337,2757.9,2757.3,3.62666]
[1724476916090,6.03337,2757.9,2757.4,1.10610869]
[1724476916513,3.62597,2757.9,2757.4,1.10610869]
[1724476916723,7.22612104,2758.2,2757.5,2.4168]
[1724476916928,3.62568,2758.1,2757.6,4.17625]
[1724476917248,0.05,2758.2,2757.6,4.17625]
[1724476917389,0.05,2758.2,2758.1,3.62568]
[1724476917816,0.05,2758.2,2758.1,4.17568]
[1724476918019,0.05,2758.2,2758.1,7.80136]
[1724476918227,0.05,2758.2,2758.1,10.21816]
[1724476918630,0.05,2758.2,2758.1,6.59248]
[1724476918835,0.05,2758.2,2758.1,7.614315]
[1724476920944,0.05,2758.2,2758.1,11.31249737]
[1724476922513,0.05,2758.2,2758.1,14.865675]
[1724476922713,0.05,2758.2,2758.1,20.94293515]
[1724476923058,0.05,2758.2,2758.1,14.239995]
[1724476924421,0.05,2758.2,2758.1,20.94293515]
[1724476926722,0.05,2758.2,2758.1,17.31725515]
[1724476926923,0.05,2758.2,2758.1,14.239995]
[1724476934840,0.05,2758.2,2758.1,8.197515]
[1724476935044,2.5116,2758.2,2757.8,3.626]
[1724476935367,2.5116,2758.2,2757.9,3.62591]
[1724476936154,2.5116,2758.2,2757.7,4.285405]
[1724476936325,2.5116,2758.2,2757.7,3.6261]
[1724476936753,2.5116,2758.2,2757.5,3.6264]
[1724476936960,2.4616,2757.8,2757.1,3.62696]
[1724476937140,2.4616,2757.8,2756.5,3.62774]
[1724476937141,3.62621,2757.7,2756.5,3.62774]
[1724476937341,3.62642,2757.6,2756.9,3.62718]
[1724476937541,6.08813,2757.5,2756.9,3.62718]
[1724476937765,3.62661,2757.4,2756.7,3.62743]
[1724476937966,3.62661,2757.4,2756.8,3.62739]
[1724476938266,6.08813,2757.5,2756.8,3.62739]
[1724476938431,6.08813,2757.5,2756.8,4.419922]
[1724476938832,6.08813,2757.5,2756.9,3.62725]
[1724476939129,6.08813,2757.5,2757.0,3.62712]
[1724476940630,6.08813,2757.5,2756.9,3.62725]
[1724476940955,3.62661,2757.4,2756.8,3.62736]
[1724476941269,3.62661,2757.4,2756.6,3.62764]
[1724476941270,6.08845,2757.3,2756.6,3.62764]
[1724476941475,3.62698,2757.2,2756.5,3.62768]
[1724476941630,6.08845,2757.3,2756.5,3.62769]
[1724476941970,6.08845,2757.3,2756.6,3.62756]
[1724476942158,6.08845,2757.3,2756.0,3.62839]
[1724476942159,2.4616,2757.3,2756.9,3.62723]
[1724476943741,2.4616,2757.3,2757.1,3.62695]
[1724476944779,2.4616,2757.3,2756.9,3.62715]
[1724476945079,2.4616,2757.3,2756.9,3.989865]
[1724476945650,2.4616,2757.3,2757.0,3.62711]
[1724476948482,9.784,2757.6,2756.5,2.2502]
[1724476948654,2.334,2757.6,2757.2,3.62677]
[1724476949546,2.334,2757.6,2757.0,7.25415]
[1724476949747,2.334,2757.6,2757.1,0.55]
[1724476949983,2.334,2757.6,2757.2,3.62684]
[1724476950678,2.334,2757.6,2757.1,0.55]
[1724476950984,5.96034,2757.6,2757.1,0.55]
[1724476951687,3.62634,2757.6,2757.1,4.17696]
[1724476951988,0.05,2758.2,2758.0,3.62581]
[1724476952187,0.05,2758.2,2758.0,7.25152]
[1724476952378,0.05,2758.2,2758.1,4.17568]
[1724476952687,0.05,2758.2,2758.1,0.55]
[1724476953087,0.05,2758.2,2758.1,4.17568]
[1724476953388,0.05,2758.2,2758.1,4.955819]
[1724476955194,0.05,2758.2,2757.6,10.25258]
[1724476955394,0.05,2758.2,2757.7,3.55]
[1724476955893,0.05,2758.2,2757.7,7.17612]
[1724476956063,0.05,2758.2,2757.8,3.62607]
[1724476957894,0.05,2758.2,2757.2,7.48442815]
[1724476957895,0.05,2758.2,2757.2,0.780398]
[1724476958190,2.334,2758.0,2757.2,3.62674]
[1724476958368,5.9599,2758.0,2757.3,3.6267]
[1724476958690,3.62608,2757.8,2757.2,3.62674]
[1724476958895,2.334,2757.7,2757.2,3.62674]
[1724476959757,2.334,2757.7,2757.3,3.62671]
[1724476959957,2.334,2757.7,2757.4,3.62658]
[1724476960161,2.334,2758.0,2757.4,3.62658]
[1724476960383,2.334,2758.0,2757.5,3.62647]
[1724476960580,2.334,2758.0,2757.4,3.62658]
[1724476961292,5.95982,2758.0,2757.4,3.62658]
[1724476961497,7.692202,2758.0,2757.4,3.62658]
[1724476964715,11.318142,2758.0,2757.4,3.62658]
[1724476964881,7.692202,2758.0,2757.4,3.62658]
[1724476966215,2.334,2758.0,2756.9,2.2502]
[1724476966419,2.334,2758.0,2757.6,3.62621]
[1724476967121,2.334,2758.0,2757.4,3.6265]
[1724476967414,5.95982,2758.0,2757.5,0.55]
[1724476967818,3.62603,2757.9,2757.2,7.25356]
[1724476968123,3.62616,2757.8,2757.0,3.62707]
[1724476968418,3.62637,2757.6,2757.0,3.62704]
[1724476968617,3.62637,2757.6,2757.0,4.289744]
[1724476969014,11.07616,2757.8,2757.2,3.62682]
[1724476969198,7.45,2757.8,2757.2,3.62682]
[1724476969398,7.45,2757.8,2757.4,3.62649]
[1724476971434,7.45,2757.8,2757.5,0.55]
[1724476971743,7.45,2757.8,2757.6,3.62624]
[1724476972036,2.334,2758.0,2757.7,3.62621]
[1724476972503,0.05,2758.2,2757.8,3.62607]
[1724476973031,3.67556,2758.2,2757.7,3.62621]
[1724476973587,0.05,2758.2,2757.7,3.62621]
[1724476973930,0.05,2758.2,2757.7,4.4482393]
[1724476974135,3.67555,2758.2,2757.7,4.4482393]
[1724476975093,3.67555,2758.2,2757.7,3.62621]
[1724476975433,0.05,2758.2,2757.5,4.17637]
[1724476975931,3.62579,2758.1,2757.5,4.17637]
[1724476976516,3.62579,2758.1,2757.6,3.62631]
[1724476976719,2.2582,2758.0,2757.5,4.17637]
[1724476977038,5.8841,2758.0,2757.5,0.55]
[1724476978105,5.8841,2758.0,2757.5,4.17644]
[1724476981129,2.3082,2758.2,2757.8,3.62603]
[1724476981322,3.45130104,2758.2,2757.8,3.62602]
[1724476981528,2.3082,2758.2,2757.8,3.62602]
[1724476982142,2.3082,2758.2,2757.7,4.4481264]
[1724476982308,2.3082,2758.2,2757.8,0.44481264]
[1724476982844,2.3082,2758.2,2757.8,4.07084264]
[1724476983047,0.05,2758.2,2757.8,4.07084264]
[1724476983231,0.05,2758.2,2757.8,0.44481264]
[1724476985548,0.05,2758.2,2757.9,3.62585]
[1724476985768,0.05,2758.2,2757.7,7.25231]
[1724476985912,0.05,2758.2,2757.7,3.62612]
[1724476986346,0.05,2758.2,2757.9,3.62586]
[1724476987917,0.05,2758.2,2758.0,3.62573]
[1724476988111,0.05,2758.2,2758.1,0.725159]
[1724476988550,0.05,2758.2,2758.1,3.62568]
[1724476990456,0.05,2758.2,2758.1,7.32386737]
[1724476990619,0.05,2758.2,2758.1,7.80136]
[1724476990819,0.05,2758.2,2757.5,3.55]
[1724476990820,0.05,2758.2,2757.5,3.0]
[1724476991025,0.05,2758.2,2757.2,7.25359]
[1724476991026,2.4177,2758.1,2757.2,7.25359]
[1724476991363,3.62608,2757.8,2757.2,3.62677]
[1724476991659,3.62608,2757.8,2757.0,4.289794]
[1724476991660,3.62645,2757.6,2757.0,4.289794]
[1724476991820,3.62645,2757.6,2757.1,3.62699]
[1724476992013,3.62645,2757.6,2757.0,4.289794]
[1724476992014,3.56080104,2757.7,2757.2,3.62685]
[1724476992692,2.4177,2757.7,2757.2,3.62685]
[1724476993223,2.4177,2757.7,2757.0,4.289794]
[1724476993419,6.04401,2757.7,2757.0,4.289794]
[1724476993828,2.4177,2757.7,2757.2,3.62685]
[1724476994032,3.56080104,2757.7,2757.2,3.62685]
[1724476994373,7.18704104,2757.7,2757.1,4.0559594]
[1724476994737,3.62655,2757.5,2756.8,6.62734]
[1724476995067,2.4177,2757.4,2756.9,3.62726]
[1724476995238,2.4177,2757.4,2756.8,3.0]
[1724476995572,2.4177,2757.4,2757.1,3.6269]
[1724476995727,2.4177,2757.4,2756.9,3.62724]
[1724476996064,0.76002748,2757.3,2756.7,6.62743]
[1724476996278,0.76002748,2757.2,2756.8,3.62739]
[1724476997035,0.76002748,2757.2,2756.9,3.62725]
[1724476997357,0.76002748,2757.3,2756.9,3.62725]
[1724476998396,0.76002748,2757.3,2756.9,7.25443]
[1724476998600,0.76002748,2757.3,2757.0,3.62711]
[1724476999073,3.17772748,2757.4,2757.0,3.62711]
[1724476999257,3.17772748,2757.4,2757.1,3.62694]
[1724476999460,0.76002748,2757.4,2757.1,3.62694]
[1724476999662,0.76002748,2757.5,2757.2,3.62686]
[1724477000216,0.76002748,2757.5,2757.4,3.6266]
[1724477000385,0.76002748,2757.6,2757.2,3.62675]
[1724477000539,0.76002748,2757.5,2757.2,7.25354]
[1724477000735,0.76002748,2757.5,2757.2,3.62675]
[1724477000936,0.76002748,2757.5,2757.2,7.25352]
[1724477001165,0.71002748,2757.5,2757.3,3.62672]
[1724477001752,0.71002748,2757.5,2757.2,4.352102]
[1724477003341,1.14310104,2757.8,2757.3,4.17661]
[1724477003541,1.14310104,2757.8,2757.5,3.62646]
[1724477003742,1.14310104,2757.8,2757.3,7.80324]
[1724477003947,1.14310104,2757.8,2757.4,0.8528592]
[1724477004153,1.14310104,2757.8,2757.4,4.4794592]
[1724477007072,1.14310104,2757.8,2757.4,0.8528592]
[1724477007246,2.2518,2757.7,2757.2,0.725352]
[1724477007462,3.39490104,2757.7,2757.0,3.62705]
[1724477007646,3.39490104,2757.7,2756.8,3.62737]
[1724477007647,1.14310104,2757.6,2756.8,3.62737]
[1724477007863,1.14310104,2757.6,2756.7,3.662743]
[1724477007864,2.2518,2757.2,2756.7,3.662743]
[1724477008247,5.87875,2757.2,2756.7,3.662743]
[1724477008856,5.87875,2757.2,2756.4,3.62787]
[1724477008857,3.62714,2757.0,2756.4,3.62787]
[1724477009088,3.62714,2757.0,2756.4,3.62782]
[1724477010004,3.62714,2757.0,2756.4,7.25565]
[1724477010363,3.62714,2757.0,2756.5,6.62778]
[1724477010871,2.2518,2756.8,2756.3,3.62804]
[1724477011072,3.01161819,2756.8,2756.3,3.62804]
[1724477012272,6.63905819,2756.8,2756.2,3.6281]
[1724477012479,0.75981819,2756.7,2756.2,3.6281]
[1724477012978,0.75981819,2756.7,2756.2,7.25618]
[1724477013492,0.75981819,2756.7,2756.2,3.62808]
[1724477013788,4.38735819,2756.7,2756.2,3.62808]
[1724477013987,4.38735819,2756.7,2756.0,7.25674]
[1724477014493,6.63905819,2756.8,2756.2,3.62817]
[1724477014788,8.52499111,2756.8,2756.2,3.62817]
[1724477014948,12.15248111,2756.8,2756.2,3.62817]
[1724477015152,3.62753,2756.7,2756.2,3.62817]
[1724477016497,3.62753,2756.7,2756.0,7.25668]
[1724477017204,3.62779,2756.5,2756.0,3.62834]
[1724477017418,5.87954,2756.6,2756.0,3.62834]
[1724477017777,9.50731,2756.6,2756.0,3.62834]
[1724477018018,5.87954,2756.6,2756.0,7.25668]
[1724477018220,2.2518,2756.6,2756.2,3.62808]
[1724477018379,2.2518,2756.6,2756.2,7.25617]
[1724477018576,11.83701819,2757.0,2756.3,3.62803]
[1724477018817,2.2518,2756.9,2756.5,3.62768]
[1724477019318,2.2518,2756.9,2756.5,7.25538]
[1724477019897,2.2518,2756.9,2756.6,3.62764]
[1724477020091,2.2518,2756.9,2756.5,3.62768]
[1724477022120,2.2518,2756.9,2756.4,3.62791]
[1724477022622,2.2518,2756.9,2756.6,3.62764]
[1724477022837,7.45,2757.0,2756.7,3.62743]
[1724477023198,7.45,2757.0,2756.6,4.353195]
[1724477023402,7.45,2757.0,2756.6,7.980765]
[1724477023631,7.45,2757.0,2756.6,4.353125]
[1724477023798,7.45,2757.0,2756.6,3.62757]
[1724477024226,7.45,2757.0,2756.6,7.25514]